[Event "European Womens-ch 2025"]
[Site "Rhodes"]
[Date "2025.04.09"]
[Round "9.63"]
[White "Saraci, Ndriqona"]
[Black "Kiousi, Panagiota"]
[Result "0-1"]
[Annotator "NA"]
[ECO "B51"]
[WhiteElo "1692"]
[BlackElo "1998"]
[PlyCount "109"]
[EventDate "2025.03.29"]
[EventType "swiss"]
[EventCountry "GRE"]
[SourceTitle "playchess.com"]
[Source "ChessBase"]
[SourceQuality "1"]
[TimeControl "40/5400+30:1800+30"]

1. e4 {[%emt 0:00:03]} c5 {[%emt 0:00:03]} 2. Nf3 {[%emt 0:00:07]} d6 {[%emt 0:00:03]} 3. Bb5+ {[%emt 0:00:20]} Nd7 {[%emt 0:00:05]} 4. c4 {[%emt 0:00:42]} Ngf6 {[%emt 0:00:44]} 5. Nc3 {[%emt 0:00:54]} a6 {[%emt 0:02:07]} 6. Ba4 {[%emt 0:05:24]} g6 {[%emt 0:06:02]} 7. O-O {[%emt 0:00:16]} Bg7 {[%emt 0:00:03]} 8. d4 {[%emt 0:01:11]} cxd4 {[%emt 0:00:26]} 9. Nxd4 {[%emt 0:00:17]} O-O {[%emt 0:00:46]} 10. Bxd7 {[%emt 0:01:23]} Bxd7 {[%emt 0:00:42]} 11. a4 {[%emt 0:10:42]} Rc8 {[%emt 0:13:44]} 12. Qd3 {[%emt 0:20:22]} Ng4 {[%emt 0:04:50]} 13. Nf3 {[%emt 0:05:42]} Re8 {[%emt 0:16:01]} 14. Bd2 {[%emt 0:04:31]} Qc7 {[%emt 0:12:42]} 15. b3 {[%emt 0:08:56]} b5 {[%emt 0:05:38]} 16. axb5 {[%emt 0:01:06]} axb5 {[%emt 0:00:10]} 17. Nd5 {[%emt 0:01:07]} Qb7 {[%emt 0:10:57]} 18. Rac1 {[%emt 0:03:17]} Bc6 {[%emt 0:04:37]} 19. h3 {[%emt 0:02:16]} Ne5 {[%emt 0:02:55]} 20. Nxe5 {[%emt 0:01:18]} dxe5 {[%emt 0:00:37]} 21. f3 {[%emt 0:03:53]} Red8 {[%emt 0:01:21]} 22. Qe2 {[%emt 0:02:50]} Rb8 {[%emt 0:05:33]} 23. Rfe1 {[%emt 0:02:21]} bxc4 {[%emt 0:01:50]} 24. bxc4 {[%emt 0:00:28]} e6 {[%emt 0:00:11]} 25. Ne3 {[%emt 0:02:58]} Qa7 {[%emt 0:01:21]} 26. Kh1 {[%emt 0:01:32]} Rb2 {[%emt 0:01:00]} 27. Rc2 {[%emt 0:01:47]} Rxc2 {[%emt 0:00:22]} 28. Nxc2 {[%emt 0:00:06]} Qa2 {[%emt 0:05:21]} 29. Be3 {[%emt 0:01:36]} Ba4 {[%emt 0:01:11]} 30. Nb4 {[%emt 0:02:49]} Qb3 {[%emt 0:00:22]} 31. Na6 {[%emt 0:01:55]} Bc6 {[%emt 0:01:28]} 32. Nc5 {[%emt 0:01:02]} Qb4 {[%emt 0:00:10]} 33. Rc1 {[%emt 0:01:26]} Qa3 {[%emt 0:00:42]} 34. Rb1 {[%emt 0:02:16]} Bf8 {[%emt 0:00:17]} 35. Qf2 {[%emt 0:02:48]} Rc8 {[%emt 0:00:50]} 36. Rb3 {[%emt 0:02:30]} Qa5 {[%emt 0:00:46]} 37. Nd3 {[%emt 0:01:29]} Qa1+ {[%emt 0:00:45]} 38. Kh2 {[%emt 0:00:53]} Ra8 {[%emt 0:00:40]} 39. Qe1 {[%emt 0:03:19]} Qa4 {[%emt 0:00:26]} 40. Rc3 {[%emt 0:00:00]} Rb8 {[%emt 0:00:00]} 41. Qf2 {[%emt 0:05:57]} Qa1 {[%emt 0:05:49]} 42. Rc1 {[%emt 0:01:16]} Qa3 {[%emt 0:08:33]} 43. Rd1 {[%emt 0:06:43]} Rd8 {[%emt 0:04:21]} 44. Qe2 {[%emt 0:02:50]} Qb3 {[%emt 0:01:15]} 45. Nxe5 {[%emt 0:01:44]} Rxd1 {[%emt 0:05:36]} 46. Nxc6 {[%emt 0:00:16]} Qb1 {[%emt 0:00:55]} 47. c5 {[%emt 0:01:31]} Rh1+ {[%emt 0:00:54]} 48. Kg3 {[%emt 0:00:12]} Qb7 {[%emt 0:00:38]} 49. Ne5 {[%emt 0:03:16]} Qc7 {[%emt 0:00:58]} 50. f4 {[%emt 0:00:54]} Bxc5 {[%emt 0:00:46]} 51. Bxc5 {[%emt 0:00:52]} Qxc5 {[%emt 0:00:07]} 52. Qd3 {[%emt 0:00:50]} h5 {[%emt 0:02:38]} 53. Qd8+ {[%emt 0:01:11]} Kg7 {[%emt 0:00:17]} 54. Qd7 {[%emt 0:01:46]} Qe3+ {[%emt 0:00:24]} 55. Nf3 {[%emt 0:10:50]} 0-1

[Event "European Womens-ch 2025"]
[Site "Rhodes"]
[Date "2025.04.09"]
[Round "9.64"]
[White "Kalyva, Kyriaki"]
[Black "Lamprianou, Marianna"]
[Result "1-0"]
[Annotator "NA"]
[ECO "D35"]
[WhiteElo "1885"]
[BlackElo "1498"]
[PlyCount "97"]
[EventDate "2025.03.29"]
[EventType "swiss"]
[EventCountry "GRE"]
[SourceTitle "playchess.com"]
[Source "ChessBase"]
[SourceQuality "1"]
[TimeControl "40/5400+30:1800+30"]

1. d4 {[%emt 0:00:03]} d5 {[%emt 0:00:06]} 2. c4 {[%emt 0:00:05]} Nf6 {[%emt 0:00:27]} 3. Nc3 {[%emt 0:00:12]} e6 {[%emt 0:00:29]} 4. cxd5 {[%emt 0:00:11]} exd5 {[%emt 0:00:44]} 5. Bg5 {[%emt 0:00:12]} Be7 {[%emt 0:00:45]} 6. e3 {[%emt 0:00:29]} a6 {[%emt 0:00:55]} 7. Bd3 {[%emt 0:00:36]} Nc6 {[%emt 0:00:47]} 8. a3 {[%emt 0:00:55]} Be6 {[%emt 0:01:31]} 9. Nge2 {[%emt 0:00:59]} Qd7 {[%emt 0:01:15]} 10. Qc2 {[%emt 0:01:32]} h6 {[%emt 0:03:58]} 11. Bh4 {[%emt 0:00:31]} O-O {[%emt 0:02:19]} 12. O-O {[%emt 0:01:36]} Rfe8 {[%emt 0:01:34]} 13. Rac1 {[%emt 0:02:02]} Rac8 {[%emt 0:06:22]} 14. Na4 {[%emt 0:04:35]} Na7 {[%emt 0:05:41]} 15. Nc5 {[%emt 0:02:51]} Qc6 {[%emt 0:02:28]} 16. Qb3 {[%emt 0:05:56]} Bxc5 {[%emt 0:07:44]} 17. Rxc5 {[%emt 0:02:24]} Qb6 {[%emt 0:00:46]} 18. Qc2 {[%emt 0:03:28]} Nd7 {[%emt 0:04:19]} 19. Rc3 {[%emt 0:03:25]} Nb5 {[%emt 0:02:02]} 20. Bxb5 {[%emt 0:01:33]} Qxb5 {[%emt 0:01:09]} 21. Rc1 {[%emt 0:00:45]} Nf8 {[%emt 0:04:41]} 22. Bg3 {[%emt 0:04:13]} Bf5 {[%emt 0:07:33]} 23. Qd2 {[%emt 0:03:49]} c6 {[%emt 0:03:41]} 24. f3 {[%emt 0:10:15]} Nd7 {[%emt 0:02:58]} 25. Bf2 {[%emt 0:00:54]} Re6 {[%emt 0:02:51]} 26. Nf4 {[%emt 0:03:26]} Rd6 {[%emt 0:04:05]} 27. Re1 {[%emt 0:06:04]} Re8 {[%emt 0:01:39]} 28. b4 {[%emt 0:01:56]} a5 {[%emt 0:01:17]} 29. bxa5 {[%emt 0:01:44]} Qxa5 {[%emt 0:00:14]} 30. Qb2 {[%emt 0:00:26]} b5 {[%emt 0:01:22]} 31. Qc1 {[%emt 0:03:10]} Qa6 {[%emt 0:02:12]} 32. Nh5 {[%emt 0:03:03]} Rb8 {[%emt 0:02:46]} 33. Ng3 {[%emt 0:00:26]} Bg6 {[%emt 0:01:11]} 34. e4 {[%emt 0:03:12]} f6 {[%emt 0:06:05]} 35. Qf4 {[%emt 0:07:18]} Re6 {[%emt 0:01:15]} 36. Qg4 {[%emt 0:01:18]} Bf7 {[%emt 0:00:55]} 37. Nf5 {[%emt 0:00:26]} g5 {[%emt 0:02:29]} 38. Nxh6+ {[%emt 0:00:26]} Kf8 {[%emt 0:00:49]} 39. Nxf7 {[%emt 0:00:23]} Kxf7 {[%emt 0:00:10]} 40. f4 {[%emt 0:00:00]} Rh8 {[%emt 0:00:00]} 41. fxg5 {[%emt 0:03:14]} fxg5 {[%emt 0:04:33]} 42. Rf3+ {[%emt 0:01:20]} Ke8 {[%emt 0:01:19]} 43. Qxe6+ {[%emt 0:00:42]} Kd8 {[%emt 0:00:55]} 44. exd5 {[%emt 0:01:09]} Qc8 {[%emt 0:00:58]} 45. Bg3 {[%emt 0:01:11]} Ne5 {[%emt 0:02:11]} 46. Qf6+ {[%emt 0:01:05]} Kd7 {[%emt 0:00:50]} 47. Rxe5 {[%emt 0:00:52]} Re8 {[%emt 0:01:00]} 48. Qf7+ {[%emt 0:00:52]} Re7 {[%emt 0:01:01]} 49. Qxe7# {[%emt 0:00:38]} 1-0

[Event "European Womens-ch 2025"]
[Site "Rhodes"]
[Date "2025.04.09"]
[Round "9.65"]
[White "Mitraka, Chrysoula-Paraskevi"]
[Black "Korinioti, Myrto"]
[Result "1-0"]
[Annotator "NA"]
[ECO "D31"]
[WhiteElo "1820"]
[BlackElo "1667"]
[PlyCount "69"]
[EventDate "2025.03.29"]
[EventType "swiss"]
[EventCountry "GRE"]
[SourceTitle "playchess.com"]
[Source "ChessBase"]
[SourceQuality "1"]
[TimeControl "40/5400+30:1800+30"]

1. d4 {[%emt 0:00:31]} d5 {[%emt 0:01:23]} 2. c4 {[%emt 0:00:15]} e6 {[%emt 0:01:11]} 3. Nc3 {[%emt 0:02:44]} Be7 {[%emt 0:00:26]} 4. cxd5 {[%emt 0:01:10]} exd5 {[%emt 0:00:30]} 5. Nf3 {[%emt 0:00:56]} c6 {[%emt 0:01:19]} 6. Qc2 {[%emt 0:02:16]} g6 {[%emt 0:03:23]} 7. Bf4 {[%emt 0:04:21]} Bf5 {[%emt 0:01:12]} 8. Qb3 {[%emt 0:04:08]} Qc8 {[%emt 0:02:43]} 9. Rc1 {[%emt 0:05:30]} Nf6 {[%emt 0:17:30]} 10. Nxd5 {[%emt 0:06:10]} Nxd5 {[%emt 0:05:19]} 11. Be5 {[%emt 0:11:10]} O-O {[%emt 0:09:29]} 12. Nd2 {[%emt 0:09:46]} Bb4 {[%emt 0:05:01]} 13. f3 {[%emt 0:08:05]} Bxd2+ {[%emt 0:00:33]} 14. Kxd2 {[%emt 0:00:10]} Be6 {[%emt 0:00:25]} 15. e4 {[%emt 0:07:25]} Nb6 {[%emt 0:07:20]} 16. Qe3 {[%emt 0:08:24]} f6 {[%emt 0:02:02]} 17. Bd6 {[%emt 0:02:29]} Rf7 {[%emt 0:00:41]} 18. Bd3 {[%emt 0:04:44]} Qd8 {[%emt 0:03:53]} 19. Ba3 {[%emt 0:08:37]} Rd7 {[%emt 0:00:32]} 20. b3 {[%emt 0:02:16]} Rxd4 {[%emt 0:00:33]} 21. Bb2 {[%emt 0:00:50]} Rd6 {[%emt 0:01:08]} 22. e5 {[%emt 0:06:32]} Rd7 {[%emt 0:06:15]} 23. exf6 {[%emt 0:02:40]} Bf5 {[%emt 0:00:12]} 24. Qe5 {[%emt 0:00:39]} Rxd3+ {[%emt 0:00:28]} 25. Ke1 {[%emt 0:00:28]} Na6 {[%emt 0:01:26]} 26. f7+ {[%emt 0:00:30]} Kxf7 {[%emt 0:02:28]} 27. Qg7+ {[%emt 0:00:32]} Ke8 {[%emt 0:00:15]} 28. Kf2 {[%emt 0:00:39]} Qe7 {[%emt 0:03:40]} 29. Rhe1 {[%emt 0:00:18]} Be6 {[%emt 0:01:08]} 30. Rxe6 {[%emt 0:00:13]} Qxe6 {[%emt 0:00:34]} 31. Re1 {[%emt 0:00:09]} Rd2+ {[%emt 0:01:45]} 32. Kf1 {[%emt 0:00:12]} Rd1 {[%emt 0:00:38]} 33. Rxd1 {[%emt 0:00:21]} Qc8 {[%emt 0:09:11]} 34. Re1+ {[%emt 0:00:08]} Kd8 {[%emt 0:00:20]} 35. Qe7# {[%emt 0:00:05]} 1-0

[Event "European Womens-ch 2025"]
[Site "Rhodes"]
[Date "2025.04.09"]
[Round "9.66"]
[White "Revelioti, Eleni Nefeli"]
[Black "Bania, Eleni"]
[Result "0-1"]
[Annotator "NA"]
[ECO "B28"]
[WhiteElo "1470"]
[BlackElo "1809"]
[PlyCount "98"]
[EventDate "2025.03.29"]
[EventType "swiss"]
[EventCountry "GRE"]
[SourceTitle "playchess.com"]
[Source "ChessBase"]
[SourceQuality "1"]
[TimeControl "40/5400+30:1800+30"]

1. e4 {[%emt 0:00:15]} c5 {[%emt 0:00:04]} 2. Nf3 {[%emt 0:00:16]} a6 {[%emt 0:00:04]} 3. d4 {[%emt 0:00:20]} cxd4 {[%emt 0:00:05]} 4. Nxd4 {[%emt 0:00:27]} Nf6 {[%emt 0:00:05]} 5. Nc3 {[%emt 0:02:14]} e5 {[%emt 0:00:05]} 6. Nf3 {[%emt 0:01:04]} Bb4 {[%emt 0:00:18]} 7. Bd2 {[%emt 0:02:13]} O-O {[%emt 0:00:53]} 8. Bd3 {[%emt 0:01:23]} Nc6 {[%emt 0:07:28]} 9. O-O {[%emt 0:05:32]} d6 {[%emt 0:04:35]} 10. h3 {[%emt 0:01:21]} h6 {[%emt 0:08:26]} 11. a3 {[%emt 0:04:11]} Bxc3 {[%emt 0:03:30]} 12. Bxc3 {[%emt 0:00:11]} Be6 {[%emt 0:03:31]} 13. Re1 {[%emt 0:06:48]} Qc7 {[%emt 0:00:33]} 14. Qe2 {[%emt 0:06:49]} Rad8 {[%emt 0:08:45]} 15. Bc4 {[%emt 0:09:48]} Nd4 {[%emt 0:14:43]} 16. Nxd4 {[%emt 0:12:53]} Bxc4 {[%emt 0:00:13]} 17. Qe3 {[%emt 0:00:34]} exd4 {[%emt 0:00:42]} 18. Bxd4 {[%emt 0:03:10]} Qe7 {[%emt 0:00:40]} 19. e5 {[%emt 0:02:33]} dxe5 {[%emt 0:03:37]} 20. Bc5 {[%emt 0:00:30]} Qc7 {[%emt 0:05:04]} 21. Bxf8 {[%emt 0:00:24]} Kxf8 {[%emt 0:00:29]} 22. Qxe5 {[%emt 0:00:45]} Qxe5 {[%emt 0:01:17]} 23. Rxe5 {[%emt 0:00:12]} Rc8 {[%emt 0:01:29]} 24. Rae1 {[%emt 0:02:43]} Be6 {[%emt 0:01:21]} 25. R1e2 {[%emt 0:01:44]} Nd7 {[%emt 0:02:15]} 26. R5e3 {[%emt 0:00:44]} Ke7 {[%emt 0:00:34]} 27. f4 {[%emt 0:01:16]} Kf6 {[%emt 0:01:33]} 28. Kh2 {[%emt 0:01:29]} Nb6 {[%emt 0:01:22]} 29. b3 {[%emt 0:03:11]} Nd5 {[%emt 0:01:22]} 30. Rf3 {[%emt 0:00:52]} h5 {[%emt 0:05:17]} 31. c4 {[%emt 0:02:03]} Ne7 {[%emt 0:03:11]} 32. Rc2 {[%emt 0:01:07]} Nf5 {[%emt 0:01:55]} 33. Rd2 {[%emt 0:04:25]} h4 {[%emt 0:00:35]} 34. Rc3 {[%emt 0:01:56]} Ng3 {[%emt 0:02:42]} 35. Rd1 {[%emt 0:02:04]} b5 {[%emt 0:05:48]} 36. c5 {[%emt 0:00:37]} Ne4 {[%emt 0:00:05]} 37. Rcc1 {[%emt 0:04:32]} Bxb3 {[%emt 0:00:33]} 38. Rd3 {[%emt 0:01:44]} Bc4 {[%emt 0:01:42]} 39. Rd4 {[%emt 0:01:11]} Nxc5 {[%emt 0:00:54]} 40. Rd6+ {[%emt 0:00:00]} Kf5 {[%emt 0:00:00]} 41. g3 {[%emt 0:05:14]} hxg3+ {[%emt 0:04:01]} 42. Kg2 {[%emt 0:01:29]} Kxf4 {[%emt 0:01:25]} 43. Rd4+ {[%emt 0:00:51]} Ne4 {[%emt 0:00:29]} 44. Re1 {[%emt 0:00:24]} f5 {[%emt 0:00:14]} 45. Rd7 {[%emt 0:00:39]} g5 {[%emt 0:00:20]} 46. Rh7 {[%emt 0:00:20]} Bd3 {[%emt 0:01:01]} 47. h4 {[%emt 0:01:07]} Rc2+ {[%emt 0:00:25]} 48. Kg1 {[%emt 0:00:33]} Rh2 {[%emt 0:00:46]} 49. h5 {[%emt 0:00:28]} Nf2 {[%emt 0:00:16]} 0-1